bitfinex-derivatives/quotes_SOLF0:USTF0_20250904
["timestamp","ask_amount","ask_price","bid_price","bid_amount"]
[1756957888280,7.61,208.2,208.07,7.5]
[1756957890783,7.61,208.18,208.07,7.5]
[1756957892585,126.59,208.18,208.07,7.5]
[1756957895586,129.63286669,208.18,208.07,7.5]
[1756957896689,7.61,208.14,208.04,3.04286669]
[1756957896890,7.61,208.14,208.04,7.5]
[1756957897286,3.04286669,208.12,208.04,7.5]
[1756957897588,7.61,208.11,208.04,7.5]
[1756957898491,7.61,208.11,208.01,7.5]
[1756957899895,118.96,208.1,208.01,7.5]
[1756957900199,7.61,208.09,208.01,7.5]
[1756957900598,10.65286669,208.09,208.01,7.5]
[1756957901900,3.04286669,208.09,207.95,3.04286669]
[1756957902099,7.45,208.08,207.96,7.38]
[1756957902897,118.96,208.07,207.96,7.38]
[1756957903203,7.45,208.06,207.96,7.38]
[1756957904696,14.38,208.07,207.96,7.38]
[1756957904897,10.49286669,208.09,207.96,7.38]
[1756957905205,10.49286669,208.09,207.99,7.38]
[1756957905206,0.0322568,208.04,207.99,7.38]
[1756957905399,0.0322568,208.04,208.01,3.04286669]
[1756957905701,0.0322568,208.04,207.92,0.8367899]
[1756957905702,0.0322568,208.04,208.02,7.38]
[1756957906094,0.0322568,208.04,207.99,7.38]
[1756957906401,0.0322568,208.04,207.98,3.04286669]
[1756957906701,0.0322568,208.04,207.99,7.38]
[1756957906896,0.0322568,208.04,207.98,3.04286669]
[1756957907097,0.0322568,208.04,207.99,7.38]
[1756957907303,0.0322568,208.04,208.03,7.38]
[1756957909305,0.0322568,208.04,207.99,7.38]
[1756957909703,0.0322568,208.04,207.98,3.04286669]
[1756957910105,0.0322568,208.04,207.99,7.38]
[1756957910503,7.45,208.03,207.99,7.38]
[1756957910697,7.45,208.03,207.95,3.04286669]
[1756957910896,7.45,208.03,207.95,10.42286669]
[1756957911404,0.03642543,208.01,207.95,10.42286669]
[1756957912506,0.03642543,208.01,207.95,7.38]
[1756957912801,7.48642543,208.01,207.95,7.38]
[1756957914205,0.03642543,208.01,207.95,7.38]
[1756957919508,0.03642543,208.01,207.92,0.8367899]
[1756957919509,0.03642543,208.01,207.98,1.95242377]
[1756957919810,0.03642543,208.01,207.99,7.38]
[1756957922701,0.03642543,208.01,207.92,0.8367899]
[1756957922702,0.03642543,208.01,207.98,1.95242377]
[1756957922906,0.03642543,208.01,207.99,7.38]
[1756957923308,0.03642543,208.01,207.98,1.95242377]
[1756957923511,0.03642543,208.01,207.99,7.38]
[1756957924012,0.03642543,208.01,207.98,1.95242377]
[1756957924209,0.03642543,208.01,207.99,7.38]
[1756957924516,0.03642543,208.01,207.98,1.95242377]
[1756957924716,0.03642543,208.01,207.99,7.38]
[1756957925911,0.03642543,208.01,207.98,1.95242377]
[1756957926616,0.03642543,208.01,207.99,7.38]
[1756957926811,0.03642543,208.01,207.98,1.95242377]
[1756957927016,0.03642543,208.01,207.99,7.38]
[1756957927313,0.03642543,208.01,208.0,9.33242377]
[1756957930816,7.45,208.11,208.01,7.38]
[1756957931018,7.45,208.11,208.05,9.33242377]
[1756957932016,1.95242377,208.12,208.06,0.03677881]
[1756957932415,7.4,208.11,208.06,0.03677881]
[1756957932717,1.95242377,208.12,208.06,0.03677881]
[1756957933314,7.4,208.12,208.06,7.73677881]
[1756957933515,7.4,208.12,208.08,7.7]
[1756957933715,9.35242377,208.15,208.08,7.7]
[1756957933909,1.95242377,208.11,208.06,0.03677881]
[1756957934112,7.4,208.1,208.06,0.03677881]
[1756957934317,1.95242377,208.11,208.06,0.03677881]
[1756957934620,7.4,208.1,208.06,0.03677881]
[1756957934819,1.95242377,208.11,208.06,0.03677881]
[1756957935015,7.4,208.1,208.06,0.03677881]
[1756957935420,1.95242377,208.11,208.06,0.03677881]
[1756957935621,1.95242377,208.09,208.06,0.03677881]
[1756957936316,7.4,208.08,208.06,0.03677881]
[1756957936516,1.95242377,208.09,208.06,0.03677881]
[1756957937416,7.4,208.09,208.06,0.03677881]
[1756957937716,7.4,208.09,208.06,7.73677881]
[1756957938521,1.95242377,208.11,208.06,0.03677881]
[1756957938522,7.4,208.1,208.06,0.03677881]
[1756957938915,1.95242377,208.11,208.06,0.03677881]
[1756957940319,7.4,208.1,208.06,0.03677881]
[1756957940622,1.95242377,208.09,208.06,0.03677881]
[1756957940923,9.35242377,208.07,208.06,0.03677881]
[1756957942431,9.83242377,208.07,208.06,0.03677881]
[1756957944423,15.21407851,208.07,208.06,0.03677881]
[1756957944818,117.89242377,208.07,208.06,0.03677881]
[1756957945524,123.27407851,208.07,208.06,0.03677881]
[1756957945820,117.89242377,208.07,208.06,0.03677881]
[1756957948130,123.27407851,208.07,208.06,0.03677881]
[1756957949426,122.79407851,208.07,208.06,0.03677881]
[1756957949827,117.41242377,208.07,208.06,0.03677881]
[1756957950033,9.35242377,208.07,208.06,0.03677881]
[1756957950224,119.57242377,208.07,208.06,0.03677881]
[1756957950429,124.95407851,208.07,208.06,0.03677881]
[1756957950830,9.35242377,208.07,208.06,0.03677881]
[1756957951035,99.58,208.07,208.06,0.03677881]
[1756957951226,118.74,208.07,208.06,0.03677881]
[1756957952833,12.78165474,208.09,208.06,0.03677881]
[1756957953029,126.14,208.08,208.06,0.03677881]
[1756957953621,7.4,208.08,208.06,0.03677881]
[1756957953827,69.92,208.08,208.06,0.03677881]
[1756957954431,7.4,208.07,208.06,0.03677881]
[1756957955425,7.33407851,208.1,208.06,0.03677881]
[1756957955625,99.82,208.09,208.06,0.03677881]
[1756957956032,7.4,208.1,208.07,7.7]
[1756957956232,7.33407851,208.12,208.06,0.03677881]
[1756957956233,118.72,208.11,208.06,0.03677881]
[1756957956429,5.38165474,208.12,208.06,1.98920258]
[1756957956626,118.72,208.12,208.06,1.98920258]
[1756957957335,118.72,208.13,208.07,7.7]
[1756957958130,12.78165474,208.14,208.07,7.7]
[1756957958332,41.36,208.13,208.07,7.7]
[1756957960839,7.4,208.14,208.07,7.7]
[1756957961038,9.35242377,208.14,208.07,7.7]
[1756957964035,7.4,208.14,208.09,7.81]
[1756957964239,7.4,208.14,208.1,1.95242377]
[1756957964439,7.4,208.14,208.11,7.81]
[1756957970849,7.4,208.14,208.1,0.03672219]
[1756957971055,7.76,208.17,208.11,9.76242377]
[1756957971842,7.76,208.17,208.14,7.81]
[1756957972054,7.76,208.2,208.14,7.81]
[1756957972251,7.76,208.2,208.15,1.95242377]
[1756957972451,7.76,208.2,208.16,7.81]
[1756957972650,7.76,208.2,208.15,1.98349715]
[1756957973248,7.76,208.2,208.16,7.81]
[1756957974144,7.76,208.2,208.15,1.98349715]
[1756957975348,7.76,208.2,208.16,7.81]
[1756957976149,5.38165474,208.23,208.15,1.98349715]
[1756957976355,7.76,208.24,208.19,1.95242377]
[1756957976651,7.76,208.25,208.19,1.95242377]
[1756957977053,7.76,208.25,208.19,1.98589684]
[1756957979454,7.76,208.25,208.19,0.03347307]
[1756957980155,3.04467817,208.3,208.19,0.03347307]
[1756957980457,124.9,208.29,208.19,7.84347307]
[1756957980956,7.76,208.29,208.19,7.84347307]
[1756957981156,126.3,208.29,208.19,7.84347307]
[1756957981759,126.3,208.29,208.22,7.81]
[1756957982460,126.3,208.29,208.23,0.03577654]
[1756957983958,7.76,208.29,208.23,0.03577654]
[1756957986459,7.76,208.29,208.25,7.81]
[1756957986661,7.76,208.29,208.24,3.04467817]
[1756957987364,7.76,208.29,208.25,7.81]
[1756957987560,7.76,208.29,208.24,3.04467817]
[1756957987857,7.76,208.29,208.25,7.81]
[1756957988058,7.76,208.29,208.24,3.04467817]
[1756957988260,7.76,208.29,208.25,7.81]
[1756957988462,179.5,208.34,208.25,7.81]
[1756957988659,7.76,208.33,208.25,7.81]
[1756957988859,7.76,208.33,208.21,7.81]
[1756957989160,7.76,208.33,208.27,0.03426309]
[1756957989361,7.76,208.31,208.27,0.03426309]
[1756957993666,7.98,208.31,208.27,0.03426309]
[1756957994961,7.98,208.3,208.27,0.03426309]
[1756957995364,179.46,208.32,208.27,0.03426309]
[1756957995566,7.98,208.31,208.27,0.03426309]
[1756957997370,179.46,208.32,208.27,0.03426309]
[1756957997371,61.0,208.32,208.27,0.03426309]
[1756957997669,7.98,208.3,208.27,0.03426309]
[1756957999265,118.44,208.31,208.27,0.03426309]
[1756957999566,7.98,208.3,208.27,0.03426309]
[1756957999869,118.44,208.31,208.27,0.03426309]
[1756958000269,7.98,208.3,208.27,0.03426309]
[1756958000670,118.44,208.31,208.27,0.03426309]
[1756958001262,7.98,208.3,208.27,0.03426309]
[1756958001672,118.44,208.31,208.27,0.03426309]
[1756958002371,7.98,208.29,208.27,0.03426309]
[1756958003771,118.44,208.31,208.27,0.03426309]
[1756958003968,118.44,208.31,208.12,3.04467817]
[1756958003969,7.98,208.29,208.04,7.32]
[1756958004272,3.04467817,208.26,208.12,10.36467817]
[1756958004470,7.98,208.24,208.13,7.32]
[1756958005066,0.03634814,208.21,208.13,7.32]
[1756958005563,0.03634814,208.21,208.13,10.36467817]
[1756958005766,0.03634814,208.21,208.14,7.32]
[1756958018582,0.03634814,208.21,208.14,3.04467817]
[1756958018781,0.03634814,208.21,208.15,7.32]
[1756958025388,7.46,208.2,208.15,7.32]
[1756958025688,7.49634814,208.21,208.15,7.32]
[1756958034392,0.03634814,208.21,208.15,7.32]
[1756958034599,0.03634814,208.21,208.17,7.25]
[1756958034807,0.03634814,208.21,208.16,3.04467817]
[1756958035101,0.03634814,208.21,208.17,7.25]
[1756958035102,0.0330851,208.21,208.17,7.25]
[1756958035302,0.0330851,208.21,208.16,3.04467817]
[1756958035497,0.0330851,208.21,208.15,3.04467817]
[1756958035704,0.0330851,208.21,208.16,7.25]
[1756958035903,7.46,208.25,208.16,7.25]
[1756958036103,0.03640266,208.21,208.15,3.04467817]
[1756958036700,0.03640266,208.21,208.16,7.25]
[1756958036905,0.03640266,208.21,208.15,3.04467817]
[1756958037106,0.03640266,208.21,208.16,7.25]
[1756958037807,0.03640266,208.21,208.15,3.04467817]
[1756958038008,0.03640266,208.21,208.16,7.25]
[1756958038205,0.03640266,208.21,208.15,3.04467817]
[1756958038512,0.03640266,208.21,208.16,7.25]
[1756958040507,0.03640266,208.21,208.15,3.04467817]
[1756958040708,0.03640266,208.21,208.16,7.25]
[1756958040909,0.03640266,208.21,208.15,3.04467817]
[1756958041407,0.03640266,208.21,208.17,1.94888739]
[1756958041607,0.03640266,208.21,208.18,7.25]
[1756958042007,0.03640266,208.21,208.17,1.94888739]
[1756958042310,0.03640266,208.21,208.18,7.25]
[1756958042810,0.03640266,208.21,208.17,1.94888739]
[1756958043206,0.03640266,208.21,208.18,7.25]
[1756958043602,0.03640266,208.21,208.17,1.94888739]
[1756958043807,0.03640266,208.21,208.18,7.25]
[1756958044111,0.03640266,208.21,208.17,1.94888739]
[1756958044912,0.03640266,208.21,208.18,7.25]
[1756958045709,0.03640266,208.21,208.15,1.94888739]
[1756958045710,7.49640266,208.21,208.15,1.94888739]
[1756958046810,9.44529005,208.21,208.14,7.25]
[1756958049510,9.44529005,208.21,208.15,1.94888739]
[1756958050510,9.44529005,208.21,208.14,7.25]
[1756958050511,1.94888739,208.19,208.12,1.94888739]
[1756958050712,7.46,208.18,208.09,7.25]
[1756958050911,7.46,208.16,208.1,1.94888739]
[1756958051913,7.46,208.16,208.12,1.94888739]
[1756958052316,7.46,208.16,208.13,7.37]
[1756958052914,7.89,208.19,208.12,1.94888739]
[1756958053120,1.94888739,208.18,208.1,7.37]
[1756958053317,7.89,208.15,208.04,7.37]
[1756958053517,7.89,208.15,208.08,1.94888739]
[1756958054113,5.38165474,208.18,208.06,7.37]
[1756958054114,1.94888739,208.14,208.06,7.37]
[1756958054424,7.89,208.13,208.07,1.94888739]
[1756958055118,7.89,208.11,208.03,1.94888739]
[1756958055923,7.89,208.11,208.05,1.94888739]
[1756958056925,7.89,208.11,208.05,9.31888739]
[1756958059124,7.89,208.11,207.98,0.83656863]
[1756958059125,7.89,208.14,208.08,7.37]
[1756958059323,7.89,208.14,208.08,9.31888739]
[1756958062429,1.94888739,208.17,208.1,1.94888739]
[1756958062723,7.89,208.16,208.1,1.94888739]
[1756958063123,7.89,208.16,208.04,7.37]
[1756958063124,1.94888739,208.13,208.04,7.37]
[1756958063429,7.89,208.12,208.05,1.94888739]
[1756958064321,7.89,208.1,208.04,1.94888739]
[1756958068131,7.89,208.1,208.01,7.37]
[1756958068431,7.89,208.08,208.02,1.94888739]
[1756958069028,0.03524451,208.07,208.02,1.94888739]
[1756958069234,7.89,208.06,208.02,1.94888739]
[1756958069434,0.03524451,208.07,208.01,7.37]
[1756958069631,7.92524451,208.07,208.01,9.31888739]
[1756958075630,7.89,208.06,208.03,7.37]
[1756958077243,7.89,208.06,207.99,7.37]
[1756958077538,0.03524451,208.07,208.02,1.94888739]
[1756958077738,7.89,208.06,208.02,9.31888739]
[1756958077938,0.03524451,208.07,208.02,9.31888739]
[1756958078139,7.89,208.06,208.02,9.31888739]
[1756958078339,0.03524451,208.07,208.02,9.31888739]
[1756958078736,7.89,208.05,208.02,9.31888739]
[1756958078938,7.89,208.06,208.02,1.94888739]
[1756958079338,7.89,208.06,208.0,1.94888739]
[1756958080537,7.89,208.06,207.99,7.37]
[1756958080841,7.89,208.06,208.0,1.94888739]
[1756958082641,7.89,208.06,208.01,7.32]
[1756958082842,7.89,208.06,208.0,1.94888739]
[1756958083144,7.89,208.06,208.01,7.32]
[1756958083343,7.89,208.06,208.0,1.94888739]
[1756958083543,7.55524451,208.07,208.0,1.94888739]
[1756958083744,7.55524451,208.07,208.01,7.32]
[1756958089047,9.5041319,208.07,208.01,7.32]
[1756958089746,7.55524451,208.07,208.01,7.32]
[1756958093253,9.5041319,208.07,208.01,7.32]
[1756958093862,7.52,208.04,207.96,9.26888739]
[1756958094157,7.52,208.02,207.96,9.26888739]
[1756958095160,7.52,208.02,207.96,7.32]
[1756958096563,7.52,208.0,207.93,1.94888739]
[1756958096765,7.52,208.0,207.94,7.32]
[1756958097672,9.46888739,208.05,207.98,7.32]
[1756958098058,7.52,208.05,207.98,7.32]
[1756958098361,7.52,208.05,207.99,1.94888739]
[1756958099162,7.52,208.05,207.98,7.32]
[1756958099557,0.03454593,208.04,207.98,7.32]
[1756958100268,0.03454593,208.04,207.99,1.94888739]
[1756958100567,0.03454593,208.04,207.99,9.26888739]
[1756958100865,7.52,208.03,207.99,1.94888739]
[1756958101168,0.03454593,208.04,208.0,7.32]
[1756958101365,7.52,208.03,208.0,7.32]
[1756958102656,7.52,208.03,207.91,7.32]
[1756958102858,7.52,208.03,207.96,7.32]
[1756958106070,7.52,208.03,207.93,7.32]
[1756958114679,7.52,208.03,207.95,3.05056524]
[1756958114880,7.52,208.03,207.96,7.67]
[1756958119478,62.58,208.07,207.96,7.67]
[1756958119479,13.29165474,208.07,207.96,7.67]
[1756958119679,7.91,208.07,207.99,7.67]
[1756958121282,13.29165474,208.07,207.99,7.67]
[1756958125484,7.91,208.07,207.99,7.67]
[1756958129190,13.29165474,208.07,207.99,7.67]
[1756958132290,5.38165474,208.06,207.99,7.67]
[1756958132492,5.38165474,208.06,207.9,3.05056524]
[1756958132493,7.91,208.05,207.91,7.67]
[1756958132786,5.38165474,208.05,207.95,10.72056524]
[1756958132985,7.91,208.04,207.95,10.72056524]
[1756958133493,7.91,208.04,207.96,7.67]
[1756958137295,13.29165474,208.04,207.96,7.67]
[1756958138698,7.91,208.04,207.96,7.67]
[1756958143201,13.29165474,208.04,207.96,7.67]
[1756958144704,7.91,208.04,207.96,7.67]
[1756958147099,7.91,208.04,207.9,3.05056524]
[1756958147100,7.91,208.04,207.98,3.05056524]
[1756958147599,5.38165474,208.06,207.98,10.95056524]
[1756958147799,7.93,208.05,207.98,7.9]
[1756958153012,13.31165474,208.05,207.98,7.9]
[1756958153809,5.38165474,208.04,207.98,7.9]
[1756958154103,7.93,208.05,207.98,7.9]
[1756958154104,13.31165474,208.05,207.98,7.9]
[1756958156418,5.38165474,208.04,207.98,7.9]
[1756958157117,7.93,208.03,207.98,7.9]
[1756958157317,7.93,208.03,207.94,7.9]
[1756958161521,7.93,208.01,207.94,9.85324041]
[1756958162821,7.93,208.02,207.96,9.85324041]
[1756958166125,7.93,208.02,207.96,7.9]
[1756958166324,7.93,208.02,207.96,9.85324041]
[1756958169828,7.93,208.02,207.96,7.9]
[1756958170028,7.93,208.02,207.96,9.85324041]
[1756958170329,7.93,208.02,207.96,7.9]
[1756958170530,7.93,208.02,207.96,9.85324041]
[1756958171732,7.93,208.02,207.96,7.9]
[1756958171931,7.93,208.02,207.96,9.85324041]
[1756958173125,7.48,208.0,207.94,7.55]
[1756958175230,7.48,208.0,207.94,9.50324041]
[1756958180236,7.48,208.0,207.94,1.95324041]
[1756958180441,8.00585472,208.05,207.99,7.55]
[1756958180442,7.48,208.03,207.99,7.55]
[1756958180741,7.48,208.05,207.99,7.55]
[1756958183745,12.86165474,208.05,207.99,7.55]
[1756958184344,7.48,208.05,207.99,7.55]
[1756958186046,12.86165474,208.05,207.99,7.55]
[1756958187049,7.48,208.05,207.99,7.55]
[1756958187749,12.86165474,208.05,207.99,9.50324041]
[1756958189147,7.48,208.05,207.99,9.50324041]
[1756958190245,5.38165474,208.06,208.01,1.95324041]
[1756958190549,12.86165474,208.07,208.04,7.55]
[1756958191445,5.38165474,208.07,208.03,1.95324041]
[1756958191851,5.38165474,208.07,208.04,7.55]
[1756958192051,5.38165474,208.08,208.04,7.55]
[1756958192347,7.48,208.08,208.03,1.95324041]
[1756958192548,8.00585472,208.12,207.93,14.70787498]
[1756958192549,5.38165474,208.1,208.05,1.95324041]
[1756958192750,12.86165474,208.1,208.05,1.95324041]
[1756958193147,12.86165474,208.1,208.06,7.55]
[1756958193548,12.86165474,208.1,208.08,7.55]
[1756958193549,7.48,208.1,208.08,7.55]
[1756958194153,7.48,208.11,208.08,7.55]
[1756958195653,7.48,208.11,208.05,1.95324041]
[1756958198257,7.48,208.11,208.05,9.50324041]
[1756958199756,7.48,208.09,208.02,1.95324041]
[1756958199958,7.48,208.09,208.02,9.50324041]
[1756958201763,118.08,208.11,208.05,7.55]
[1756958202165,118.08,208.11,208.06,1.95324041]
[1756958202364,125.72,208.11,208.07,7.34]
[1756958202566,7.64,208.1,208.07,7.34]
[1756958202862,118.08,208.11,208.05,1.95324041]
[1756958203056,7.64,208.1,208.05,1.95324041]
[1756958203268,120.03324041,208.11,208.05,1.95324041]
[1756958203870,127.67324041,208.11,208.05,1.95324041]
[1756958204072,125.72,208.11,208.05,1.95324041]
[1756958204666,125.72,208.11,208.04,7.34]
[1756958204667,7.64,208.1,208.03,1.95324041]
[1756958204869,1.95324041,208.09,208.01,9.29324041]
[1756958205068,7.64,208.08,208.01,9.29324041]
[1756958205868,7.64,208.08,208.03,1.95324041]
[1756958206073,7.64,208.08,208.04,7.34]
[1756958206273,7.64,208.08,208.03,1.95324041]
[1756958206473,7.64,208.08,208.04,7.34]
[1756958207269,7.64,208.08,208.03,1.95324041]
[1756958207572,7.64,208.08,208.04,7.34]
[1756958207774,7.64,208.08,208.03,1.95324041]
[1756958207976,9.59324041,208.1,208.04,7.34]
[1756958208171,127.63324041,208.1,208.04,7.34]
[1756958209379,125.68,208.1,208.05,1.95324041]
[1756958209672,7.64,208.09,208.06,7.34]
[1756958210475,7.64,208.1,208.06,7.34]
[1756958210676,118.04,208.11,208.06,7.34]
[1756958210878,7.64,208.1,208.06,7.34]
[1756958211175,118.04,208.11,208.06,7.34]
[1756958211474,7.64,208.1,208.06,7.34]
[1756958211680,118.04,208.11,208.06,7.34]
[1756958211876,7.64,208.1,208.06,7.34]
[1756958212071,118.04,208.11,208.06,7.34]
[1756958212278,118.04,208.11,208.05,1.95324041]
[1756958212279,7.64,208.1,208.05,1.95324041]
[1756958212479,7.64,208.1,207.93,14.50787498]
[1756958212781,7.64,208.11,208.06,7.34]
[1756958213178,7.64,208.11,208.05,1.95324041]
[1756958213371,7.64,208.11,207.97,7.34]
[1756958213576,7.64,208.11,208.07,7.34]
[1756958213777,125.66,208.14,208.07,7.34]
[1756958214076,125.66,208.14,208.07,9.29324041]
[1756958214677,7.64,208.14,208.07,9.29324041]
[1756958214979,118.02,208.13,208.07,9.29324041]
[1756958215584,7.64,208.12,208.07,9.29324041]
[1756958215782,118.02,208.13,208.07,9.29324041]
[1756958216079,7.64,208.12,208.07,9.29324041]
[1756958216283,125.66,208.13,208.07,1.95324041]
[1756958217389,118.02,208.13,208.09,1.95324041]
[1756958217588,118.02,208.13,208.1,7.34]
[1756958217797,118.02,208.13,208.09,1.95324041]
[1756958218586,125.64,208.16,208.1,7.34]
[1756958218781,0.0360597,208.13,208.1,7.34]
[1756958219792,7.6760597,208.13,208.1,7.34]
[1756958221482,0.0360597,208.13,208.1,7.34]
[1756958221686,7.64,208.12,208.1,7.34]
[1756958223090,0.0360597,208.13,208.1,7.34]
[1756958223493,0.0360597,208.13,208.06,3.04776576]
[1756958223792,0.0360597,208.13,208.07,7.34]
[1756958225086,7.6760597,208.13,208.07,7.34]
[1756958226792,7.6760597,208.13,208.04,7.34]
[1756958226991,10.72382546,208.13,208.04,7.34]
[1756958227194,10.68776576,208.13,208.01,7.34]
[1756958227394,7.64,208.1,208.01,7.34]
[1756958240212,13.01514989,208.1,208.01,7.34]
[1756958244210,117.92,208.09,208.01,10.38776576]
[1756958244516,117.92,208.09,208.02,7.78]
[1756958246717,7.36,208.08,208.02,7.78]
[1756958247911,7.36,208.08,207.99,10.82776576]
[1756958248508,7.39125726,208.06,207.99,7.78]
[1756958253917,7.39125726,208.06,208.0,3.04776576]
[1756958254423,7.39125726,208.06,208.01,7.78]
[1756958254820,7.39125726,208.06,208.0,3.04776576]
[1756958255722,7.36,208.05,208.01,7.78]
[1756958255923,0.03125726,208.06,208.01,7.78]
[1756958256323,7.36,208.05,208.01,7.78]
[1756958256724,0.03125726,208.06,208.01,7.78]
[1756958257022,7.36,208.05,208.01,7.78]
[1756958258119,0.03125726,208.06,208.01,7.78]
[1756958258922,0.03125726,208.06,208.04,7.78]
[1756958259621,0.03125726,208.06,208.03,3.04776576]
[1756958259824,0.03125726,208.06,208.04,7.78]
[1756958261125,0.03125726,208.06,208.04,8.26]
[1756958261322,0.03125726,208.06,208.04,7.78]
[1756958261629,7.36,208.13,208.04,7.78]
[1756958261925,7.36,208.13,208.07,3.04776576]
[1756958262326,7.32,208.17,208.08,7.3]
[1756958262727,7.32,208.17,208.1,0.03376655]
[1756958265928,7.32,208.17,208.1,10.38153231]
[1756958266632,7.32,208.17,208.11,7.3]
[1756958267130,7.32,208.17,208.1,3.08153231]
[1756958267131,7.32,208.17,208.14,7.3]
[1756958267529,7.32,208.22,208.14,7.3]
[1756958268235,7.32,208.22,208.16,0.03564846]
[1756958272436,125.14,208.22,208.16,0.03564846]
[1756958273135,7.32,208.22,208.16,0.03564846]
[1756958279550,7.32,208.22,208.16,7.33564846]
[1756958280252,7.32,208.22,208.16,0.03564846]
[1756958285564,7.32,208.2,208.16,0.03564846]
[1756958289656,1.94965817,208.21,208.16,0.03564846]
[1756958289962,7.32,208.2,208.16,7.33564846]
[1756958290458,7.32,208.21,208.16,7.33564846]
[1756958290765,117.72,208.22,208.16,7.33564846]
[1756958291261,7.32,208.21,208.16,7.33564846]
[1756958291760,62.94965817,208.23,208.16,1.98530663]
[1756958291962,7.32,208.22,208.16,1.98530663]
[1756958296756,1.94965817,208.26,208.18,9.28965817]
[1756958296959,1.94965817,208.26,208.16,0.03564846]
[1756958296960,7.62,208.24,208.2,9.28965817]
[1756958297364,7.62,208.24,208.2,9.32442585]
[1756958297562,101.18,208.25,208.2,0.03476768]
[1756958297759,7.62,208.24,208.2,0.03476768]
[1756958298161,7.62,208.24,208.21,7.34]
[1756958298359,7.62,208.24,208.2,0.03476768]
[1756958298557,101.18,208.25,208.2,0.03476768]
[1756958298968,1.94965817,208.27,208.2,0.03476768]
[1756958299171,125.32,208.26,208.2,0.03476768]
[1756958306170,130.69514989,208.26,208.2,0.03476768]
[1756958306571,125.32,208.26,208.2,0.03476768]
[1756958306776,130.69514989,208.26,208.2,0.03476768]
[1756958307369,125.32,208.26,208.2,7.37476768]
[1756958307676,7.62,208.24,208.21,9.28965817]
[1756958308073,7.62,208.25,208.21,9.28965817]
[1756958308475,117.7,208.26,208.21,9.28965817]
[1756958308874,7.62,208.25,208.21,9.28965817]
[1756958309075,7.62,208.26,208.21,9.28965817]
[1756958309278,7.62,208.25,208.21,9.28965817]
[1756958309477,117.66,208.26,208.21,9.28965817]
[1756958309678,7.62,208.25,208.21,9.28965817]
[1756958310075,117.66,208.26,208.21,9.28965817]
[1756958310276,7.62,208.25,208.21,9.28965817]
[1756958310775,7.62,208.25,208.21,1.94965817]
[1756958310981,7.62,208.25,208.22,7.34]
[1756958311882,117.64,208.26,208.22,7.34]
[1756958312076,9.56965817,208.25,208.2,0.03476768]
[1756958312278,7.62,208.22,208.2,0.03476768]
[1756958314278,119.58965817,208.21,208.2,0.03476768]
[1756958314479,127.20965817,208.21,208.2,0.03476768]
[1756958315784,125.26,208.21,208.2,0.03476768]
[1756958315973,7.62,208.21,208.2,0.03476768]
[1756958317676,7.62,208.23,208.2,0.03476768]
[1756958317982,5.37514989,208.24,208.2,7.37476768]
[1756958317983,7.62,208.24,208.2,7.37476768]
[1756958318174,7.62,208.24,208.2,9.32442585]
[1756958318784,5.37514989,208.25,208.2,9.32442585]
[1756958318983,7.62,208.24,208.2,9.32442585]
[1756958319179,5.37514989,208.25,208.2,9.32442585]
[1756958319676,7.62,208.24,208.2,9.32442585]
[1756958319883,7.62,208.24,208.2,0.03476768]
[1756958320984,7.32480806,208.25,208.2,0.03476768]
[1756958321185,7.62,208.24,208.2,0.03476768]
[1756958321385,7.32480806,208.25,208.2,0.03476768]